bitfinex-derivatives/quotes_BTCF0:USTF0_20240829
["timestamp","ask_amount","ask_price","bid_price","bid_amount"]
[1724941119674,0.3608,60569.0,60560.0,0.082541]
[1724941119972,0.3608,60569.0,60560.0,0.08254]
[1724941120173,0.3608,60569.0,60559.0,0.3608]
[1724941120377,0.3608,60569.0,60568.0,0.082531]
[1724941120568,0.00024757,60571.0,60570.0,0.082528]
[1724941120965,0.00024757,60571.0,60570.0,0.443328]
[1724941121373,0.00024757,60571.0,60570.0,0.442328]
[1724941121575,0.00024757,60571.0,60570.0,0.85608]
[1724941121876,0.00024757,60571.0,60570.0,0.443328]
[1724941122269,0.00024757,60571.0,60561.0,0.08254]
[1724941122465,0.00024757,60571.0,60568.0,0.3608]
[1724941122978,0.00024757,60571.0,60570.0,0.082528]
[1724941123284,0.3608,60588.0,60570.0,1.45608]
[1724941123476,0.3608,60588.0,60579.0,0.3608]
[1724941124672,0.00024757,60590.0,60589.0,0.082502]
[1724941124875,0.3608,60600.0,60587.0,0.443304]
[1724941125070,0.3608,60600.0,60594.0,0.3608]
[1724941125277,0.3608,60600.0,60590.0,0.0825]
[1724941125471,0.443295,60595.0,60580.0,0.3608]
[1724941125674,0.082505,60587.0,60580.0,0.3608]
[1724941126172,0.082513,60581.0,60580.0,0.3608]
[1724941126378,0.3608,60582.0,60577.0,0.00024757]
[1724941126772,0.3608,60588.0,60577.0,0.00024757]
[1724941126773,0.443311,60583.0,60577.0,0.00024757]
[1724941126977,0.3608,60578.0,60577.0,0.00024757]
[1724941127182,0.525834,60578.0,60577.0,0.00024757]
[1724941127384,0.082523,60574.0,60565.0,0.3608]
[1724941127589,0.3608,60573.0,60565.0,0.3608]
[1724941127780,0.8608,60573.0,60565.0,0.3608]
[1724941127978,0.582526,60572.0,60561.0,0.08254]
[1724941128175,0.082527,60571.0,60561.0,0.08254]
[1724941128488,0.50024757,60572.0,60568.0,0.3608]
[1724941128983,0.50024757,60572.0,60571.0,0.082527]
[1724941128984,0.00024757,60572.0,60571.0,0.082527]
[1724941129286,0.00024757,60572.0,60569.0,0.082529]
[1724941129475,0.00024757,60572.0,60571.0,0.082527]
[1724941129886,0.00024757,60572.0,60571.0,1.538607]
[1724941130183,0.00024757,60572.0,60571.0,0.938607]
[1724941130385,0.00024757,60572.0,60571.0,0.3608]
[1724941130680,0.00024757,60572.0,60561.0,0.04843325]
[1724941130681,0.36104757,60572.0,60561.0,0.04843325]
[1724941130883,0.36104757,60572.0,60560.0,0.38877281]
[1724941131074,0.00024757,60572.0,60571.0,0.082527]
[1724941131278,0.00024757,60572.0,60566.0,0.3608]
[1724941131279,0.36104757,60572.0,60566.0,0.3608]
[1724941131475,0.36104757,60572.0,60571.0,0.082527]
[1724941131782,0.00024757,60572.0,60571.0,0.443327]
[1724941131982,0.00024757,60572.0,60571.0,1.621134]
[1724941132189,0.3608,60583.0,60571.0,0.85608]
[1724941132486,0.3608,60583.0,60576.0,0.3608]
[1724941133278,0.00024757,60586.0,60584.0,0.082509]
[1724941133583,0.00024757,60586.0,60585.0,0.082508]
[1724941133787,0.00024757,60586.0,60584.0,0.082508]
[1724941133990,0.00024757,60586.0,60582.0,0.08251]
[1724941134179,0.00024757,60586.0,60583.0,0.08251]
[1724941134483,0.00024757,60586.0,60581.0,0.3608]
[1724941134880,0.36104757,60586.0,60576.0,0.3608]
[1724941135080,0.082512,60582.0,60576.0,0.3608]
[1724941135989,0.36104757,60586.0,60576.0,0.3608]
[1724941135990,0.44355457,60586.0,60576.0,0.3608]
[1724941136380,0.082512,60582.0,60576.0,0.3608]
[1724941136581,0.082512,60582.0,60573.0,0.00024757]
[1724941136582,0.082518,60578.0,60573.0,0.00024757]
[1724941136777,0.082523,60574.0,60573.0,0.00024757]
[1724941137283,0.3608,60576.0,60573.0,0.00024757]
[1724941138182,0.582522,60575.0,60573.0,0.00024757]
[1724941138986,0.3608,60576.0,60573.0,0.00024757]
[1724941139375,0.5,60575.0,60573.0,0.00024757]
[1724941139781,0.3608,60576.0,60573.0,0.00024757]
[1724941140091,0.3608,60576.0,60560.0,0.3608]
[1724941140092,0.082523,60574.0,60560.0,0.40923325]
[1724941140386,0.3608,60571.0,60560.0,0.3608]
[1724941140606,0.5,60573.0,60571.0,0.082526]
[1724941140778,0.3608,60576.0,60572.0,0.082525]
[1724941141083,0.3608,60576.0,60568.0,0.36104757]
[1724941141289,0.082522,60575.0,60568.0,0.36104757]
[1724941141482,0.3608,60576.0,60568.0,0.36104757]
[1724941141783,0.00024757,60580.0,60573.0,0.3608]
[1724941141984,0.5,60578.0,60568.0,0.36104757]
[1724941142176,0.5,60578.0,60568.0,0.00024757]
[1724941142177,0.3608,60575.0,60568.0,0.00024757]
[1724941142378,0.082529,60569.0,60568.0,0.00024757]
[1724941142788,0.5,60574.0,60568.0,0.00024757]
[1724941142977,0.5,60572.0,60568.0,0.00024757]
[1724941143173,0.3608,60569.0,60568.0,0.00024757]
[1724941143378,0.443329,60569.0,60568.0,0.00024757]
[1724941143590,0.3608,60569.0,60568.0,0.00024757]
[1724941143985,0.3608,60575.0,60573.0,0.082524]
[1724941144283,0.3608,60575.0,60568.0,0.00024757]
[1724941145381,0.3608,60575.0,60574.0,0.082523]
[1724941145777,0.3608,60586.0,60573.0,0.3608]
[1724941145988,0.5,60587.0,60579.0,0.443316]
[1724941146283,0.5,60602.0,60579.0,1.04169523]
[1724941146483,0.44328,60605.0,60595.0,0.3608]
[1724941146684,0.8608,60605.0,60595.0,0.3608]
[1724941147085,0.8608,60605.0,60595.0,0.443293]
[1724941147398,0.8608,60605.0,60595.0,0.3608]
[1724941147687,0.00024757,60606.0,60600.0,0.3608]
[1724941148285,0.00024757,60606.0,60594.0,0.00024757]
[1724941148486,0.082483,60603.0,60594.0,0.00024757]
[1724941148685,0.3608,60605.0,60594.0,0.00024757]
[1724941148893,0.5,60604.0,60595.0,0.3608]
[1724941149093,0.3608,60605.0,60595.0,0.3608]
[1724941149094,0.082483,60603.0,60595.0,0.3608]
[1724941149393,0.00024757,60606.0,60600.0,0.3608]
[1724941149576,0.08248,60605.0,60600.0,0.3608]
[1724941149781,0.00024757,60606.0,60600.0,0.3608]
[1724941150282,0.3608,60604.0,60595.0,0.3608]
[1724941150586,0.3608,60605.0,60595.0,0.3608]
[1724941150884,0.8608,60605.0,60596.0,0.082492]
[1724941151082,0.3608,60605.0,60596.0,0.082492]
[1724941151283,0.3608,60605.0,60595.0,0.3608]
[1724941151483,0.3608,60605.0,60594.0,0.00024757]
[1724941151484,0.3608,60600.0,60594.0,0.00024757]
[1724941151683,0.082489,60599.0,60594.0,0.00024757]
[1724941151987,0.3608,60600.0,60594.0,0.00024757]
[1724941152377,0.3608,60600.0,60579.0,0.3608]
[1724941152378,0.082499,60591.0,60581.0,0.082513]
[1724941152586,0.3608,60595.0,60585.0,0.3608]
[1724941152785,0.7108,60599.0,60585.0,0.3608]
[1724941152786,0.00096001,60599.0,60594.0,0.3608]
[1724941152988,0.3608,60600.0,60595.0,0.082494]
[1724941153282,0.5,60607.0,60599.0,0.3608]
[1724941153593,0.00024757,60604.0,60594.0,0.3608]
[1724941153786,0.3608,60603.0,60591.0,0.08274657]
[1724941153980,0.3608,60603.0,60595.0,0.3608]
[1724941154495,0.00024757,60604.0,60601.0,0.3608]
[1724941154787,0.00024757,60604.0,60603.0,0.082483]
[1724941155201,0.04062756,60604.0,60603.0,0.443283]
[1724941155580,0.0406247,60604.0,60603.0,0.443283]
[1724941155989,0.0406247,60604.0,60603.0,0.3608]
[1724941156195,0.4014247,60604.0,60591.0,0.00024757]
[1724941156489,0.16394714,60595.0,60591.0,0.00024757]
[1724941156690,0.16394714,60593.0,60591.0,0.00024757]
[1724941156990,0.04037713,60592.0,60591.0,0.08274657]
[1724941157293,0.20432427,60592.0,60591.0,0.08274657]
[1724941157503,0.28682227,60592.0,60591.0,0.00024757]
[1724941157683,0.48367513,60592.0,60591.0,0.00024757]
[1724941157882,0.45178712,60592.0,60582.0,0.02802094]
[1724941158083,0.164017,60584.0,60582.0,0.02802094]
[1724941158281,0.04037713,60583.0,60582.0,0.02802094]
[1724941158689,0.04037713,60583.0,60572.0,0.082525]
[1724941158986,0.3608,60578.0,60576.0,0.00024757]
[1724941159187,0.09098712,60577.0,60576.0,0.00024757]
[1724941159488,0.20443134,60577.0,60576.0,0.00024757]
[1724941159686,0.25504133,60577.0,60576.0,0.00024757]
[1724941160002,0.09098712,60577.0,60576.0,0.00024757]
[1724941160289,0.04037713,60577.0,60576.0,0.00024757]
[1724941160491,0.09098712,60577.0,60563.0,0.082537]
[1724941160682,0.14764875,60567.0,60561.0,0.02771881]
[1724941160883,0.16405417,60572.0,60558.0,0.3608]
[1724941160884,0.1716204,60566.0,60558.0,0.3608]
[1724941161094,0.13124571,60564.0,60561.0,0.08254]
[1724941161396,0.04037713,60563.0,60562.0,0.082539]
[1724941161594,0.04040493,60563.0,60561.0,0.3608]
[1724941161787,0.04040493,60562.0,60561.0,0.3608]
[1724941161984,0.00855989,60567.0,60566.0,0.082533]
[1724941162185,0.00024757,60569.0,60566.0,0.082533]
[1724941162186,0.00024757,60569.0,60568.0,0.082531]
[1724941162590,0.00024757,60569.0,60566.0,0.3608]
[1724941164099,0.00024757,60569.0,60567.0,0.082532]
[1724941164303,0.00024757,60569.0,60568.0,0.082531]
[1724941164595,0.00024757,60569.0,60568.0,0.577851]
[1724941164790,0.00024757,60569.0,60568.0,1.177851]
[1724941164992,0.00024757,60569.0,60568.0,0.577851]
[1724941165781,0.00024757,60569.0,60568.0,1.260382]
[1724941165984,0.3646,60591.0,60568.0,1.177851]
[1724941166183,0.5,60592.0,60577.0,0.3608]
[1724941166184,0.5,60590.0,60577.0,0.3608]
[1724941166397,0.582502,60590.0,60577.0,0.3608]
[1724941166604,0.5,60591.0,60577.0,0.3608]
[1724941166895,0.1914,60595.0,60578.0,0.00024757]
[1724941166896,0.3608,60582.0,60578.0,0.00024757]
[1724941167096,0.082516,60579.0,60578.0,0.00024757]
[1724941167688,0.3608,60587.0,60578.0,0.00024757]
[1724941167689,0.5,60581.0,60578.0,0.00024757]
[1724941168100,0.082516,60579.0,60578.0,0.00024757]
[1724941168289,0.58251,60583.0,60578.0,0.00024757]
[1724941168599,0.3608,60587.0,60578.0,0.00024757]
[1724941168802,0.04039791,60586.0,60578.0,0.00024757]
[1724941169107,0.36164,60587.0,60581.0,0.082512]
[1724941169394,0.3608,60587.0,60584.0,0.082508]
[1724941169601,0.3608,60587.0,60578.0,0.00024757]
[1724941169797,0.3608,60587.0,60581.0,0.3608]
[1724941170387,0.04039557,60586.0,60581.0,0.3608]
[1724941170590,0.04039557,60585.0,60582.0,0.3608]
[1724941170893,0.00024757,60590.0,60582.0,0.3608]
[1724941171195,0.082507,60586.0,60582.0,0.3608]
[1724941171401,0.3608,60583.0,60578.0,0.00024757]
[1724941171586,0.04039309,60582.0,60578.0,0.00024757]
[1724941171793,0.04039309,60582.0,60580.0,0.082514]
[1724941171988,0.64764875,60584.0,60580.0,0.082514]
[1724941171989,0.04039309,60581.0,60580.0,0.082514]
[1724941172200,0.14764875,60591.0,60578.0,0.00024757]
[1724941172399,0.04039427,60589.0,60584.0,0.3608]
[1724941172696,0.04039427,60588.0,60581.0,0.082512]
[1724941172899,0.04039427,60587.0,60582.0,0.3608]
[1724941173203,0.3608,60588.0,60582.0,0.443311]
[1724941173204,0.04039427,60586.0,60582.0,0.443311]
[1724941173402,0.04039427,60585.0,60582.0,0.3608]
[1724941173592,0.04039427,60584.0,60582.0,0.3608]
[1724941173912,0.04039427,60583.0,60578.0,0.00024757]
[1724941174199,0.04039427,60582.0,60578.0,0.00024757]
[1724941174503,0.082516,60579.0,60578.0,0.00024757]
[1724941174693,0.12291027,60579.0,60578.0,0.00024757]
[1724941175091,0.74656917,60580.0,60574.0,0.02761128]
[1724941175295,0.3608,60575.0,60564.0,0.082536]
[1724941175601,0.3608,60570.0,60565.0,0.082534]
[1724941175803,0.23883246,60574.0,60568.0,0.443331]
[1724941175804,0.0404049,60569.0,60568.0,0.443331]
[1724941175991,0.19843421,60578.0,60570.0,0.082528]
[1724941176190,0.19843421,60578.0,60568.0,0.3608]
[1724941176191,0.00024757,60575.0,60568.0,0.3608]
[1724941176402,0.04040387,60574.0,60562.0,0.08270343]
[1724941176591,0.3608,60569.0,60566.0,0.082533]
[1724941176795,0.04040432,60568.0,60566.0,0.082533]
[1724941177098,0.36104757,60575.0,60566.0,0.082533]
[1724941177510,0.36104757,60575.0,60565.0,0.3608]
[1724941177705,0.36104757,60575.0,60565.0,0.443335]
[1724941177908,0.36104757,60575.0,60566.0,0.082533]
[1724941178124,0.36104757,60575.0,60565.0,0.3608]
[1724941178405,0.00024757,60575.0,60572.0,0.3608]
[1724941178599,0.00024757,60575.0,60574.0,0.082523]
[1724941178798,0.00024757,60575.0,60572.0,0.3608]
[1724941179001,0.082523,60574.0,60572.0,0.3608]
[1724941179497,0.00024757,60575.0,60572.0,0.3608]
[1724941180207,0.08276957,60575.0,60572.0,0.3608]
[1724941180601,0.082523,60574.0,60572.0,0.3608]
[1724941180907,0.082523,60574.0,60565.0,0.3608]
[1724941180908,0.12292686,60573.0,60565.0,0.3608]
[1724941181111,0.40120518,60572.0,60565.0,0.3608]
[1724941181295,0.3608,60572.0,60565.0,0.3608]
[1724941181498,0.3598,60572.0,60565.0,0.47050915]
[1724941181698,0.08276957,60575.0,60565.0,0.38797615]
[1724941181897,0.04040528,60574.0,60565.0,0.47051115]
[1724941182105,0.04040528,60573.0,60565.0,0.47051115]
[1724941182304,0.00024757,60575.0,60565.0,0.47051115]
[1724941182513,0.04040521,60574.0,60565.0,0.47051115]
[1724941182804,0.04040518,60573.0,60565.0,0.47051115]
[1724941183009,0.00024757,60575.0,60566.0,0.082533]
[1724941183304,0.00024757,60575.0,60571.0,0.3608]
[1724941183305,0.04040453,60574.0,60571.0,0.3608]
[1724941183504,0.00024757,60575.0,60573.0,0.082523]
[1724941183894,0.00024757,60575.0,60571.0,0.3608]
[1724941183895,0.00024757,60575.0,60574.0,0.082523]
[1724941184102,0.3608,60584.0,60574.0,0.577763]
[1724941184300,0.36164,60591.0,60583.0,0.44331]
[1724941184505,0.36164,60591.0,60583.0,0.3608]
[1724941184506,0.04039701,60590.0,60583.0,0.3608]
[1724941184709,0.3608,60591.0,60587.0,0.082505]
[1724941185000,0.3608,60591.0,60575.0,0.3287]
[1724941185001,0.04039421,60590.0,60579.0,0.082515]
[1724941185203,0.3608,60585.0,60579.0,0.082515]
[1724941185399,0.3608,60585.0,60578.0,0.00024757]
[1724941185622,0.3608,60585.0,60578.0,0.08276357]
[1724941185910,0.3608,60585.0,60579.0,0.082516]
[1724941186113,0.3608,60585.0,60578.0,0.00024757]
[1724941186709,0.3608,60585.0,60578.0,0.02807499]
[1724941188709,0.04039942,60584.0,60578.0,0.02807499]
[1724941188910,0.443309,60585.0,60578.0,0.02807499]
[1724941188911,0.04039942,60583.0,60578.0,0.02807499]
[1724941189117,0.04039942,60582.0,60578.0,0.02807499]
[1724941189313,0.04039942,60581.0,60578.0,0.02807499]
[1724941189613,0.04039942,60580.0,60578.0,0.02807499]
[1724941189810,0.3608,60585.0,60578.0,0.02807499]
[1724941189811,0.04039942,60579.0,60578.0,0.02807499]
[1724941190406,0.3608,60585.0,60578.0,0.02807499]
[1724941190712,0.5,60582.0,60578.0,0.02807499]
[1724941190904,0.3608,60585.0,60578.0,0.02807499]
[1724941191106,0.3608,60585.0,60579.0,0.082516]
[1724941191302,0.00024757,60591.0,60587.0,0.082505]
[1724941191608,0.14778917,60601.0,60590.0,0.36]
[1724941191805,0.05146487,60604.0,60600.0,0.3608]
[1724941191999,0.04038495,60603.0,60600.0,0.443287]
[1724941192199,0.04038495,60602.0,60601.0,0.082486]
[1724941192713,0.14804718,60602.0,60601.0,0.082486]
[1724941192900,0.04037959,60602.0,60601.0,0.082486]
[1724941193103,0.04037959,60602.0,60600.0,0.3608]
[1724941193412,0.48366559,60601.0,60585.0,0.3608]
[1724941193617,0.14797185,60590.0,60585.0,0.3608]
[1724941193816,0.18835144,60589.0,60585.0,0.3608]
[1724941194108,0.18835144,60588.0,60585.0,0.3608]
[1724941194309,0.04037959,60587.0,60585.0,0.3608]
[1724941194512,0.14797185,60590.0,60585.0,0.3608]
[1724941194513,0.04037959,60586.0,60585.0,0.3608]
[1724941194810,0.04037959,60586.0,60585.0,0.38840246]
[1724941195119,0.04038804,60586.0,60585.0,1.84356246]
[1724941195416,0.19859515,60596.0,60585.0,1.34840246]
[1724941195710,0.04038692,60595.0,60594.0,0.082494]
[1724941196312,0.04038692,60595.0,60594.0,0.577574]
[1724941196502,0.04038692,60595.0,60594.0,1.177574]
[1724941196902,0.00024757,60601.0,60595.0,0.082494]
[1724941197108,0.00024757,60601.0,60599.0,0.3608]
[1724941197709,0.14821942,60601.0,60594.0,0.00024757]
[1724941197912,0.3608,60595.0,60594.0,0.00024757]
[1724941198219,0.4114233,60595.0,60594.0,0.00024757]
[1724941198413,0.55939515,60595.0,60594.0,0.02815402]
[1724941198617,0.55939515,60595.0,60594.0,0.00024757]
[1724941198618,1.36450014,60595.0,60594.0,0.00024757]
[1724941198915,0.7363,60595.0,60586.0,0.3608]
[1724941199117,0.7363,60595.0,60587.0,0.35649831]
[1724941199315,0.818794,60595.0,60587.0,0.35649831]
[1724941199507,0.082496,60594.0,60587.0,0.35649831]
[1724941200210,0.00084,60595.0,60593.0,0.3608]
[1724941200418,0.50024757,60601.0,60593.0,0.3608]
[1724941200419,0.00024757,60601.0,60593.0,0.36909476]
[1724941200617,0.00024757,60601.0,60593.0,0.56789476]
[1724941200618,0.14797185,60598.0,60593.0,0.56789476]
[1724941200806,0.14797185,60598.0,60594.0,0.3608]
[1724941201006,0.14821942,60601.0,60594.0,0.3608]
[1724941201306,0.14797185,60596.0,60594.0,0.3608]
[1724941201610,0.00024757,60601.0,60588.0,0.3608]
[1724941201611,0.082501,60590.0,60588.0,0.3608]
[1724941201807,0.8608,60598.0,60588.0,0.3608]
[1724941202008,0.3608,60598.0,60593.0,0.3608]
[1724941202212,0.5,60599.0,60593.0,0.3608]
[1724941202407,0.082489,60599.0,60593.0,0.3608]
[1724941202610,0.00024757,60601.0,60593.0,0.3608]
[1724941202611,0.14797185,60594.0,60593.0,0.3608]
[1724941202913,0.00024757,60601.0,60593.0,0.7208]
[1724941203212,0.00024757,60601.0,60600.0,0.803287]
[1724941203418,0.14763213,60617.0,60606.0,0.082479]
[1724941203614,0.11808367,60624.0,60616.0,1.0816]
[1724941203819,0.5,60633.0,60616.0,1.0816]
[1724941203820,0.14763213,60632.0,60623.0,0.7208]
[1724941204002,0.14763213,60632.0,60631.0,0.3608]
[1724941204310,0.54058198,60639.0,60631.0,0.7208]
[1724941204311,0.00024757,60638.0,60631.0,0.7208]
[1724941204513,0.00024757,60638.0,60626.0,0.2059]
[1724941204708,0.3608,60636.0,60625.0,0.36104757]
[1724941204915,0.082445,60631.0,60625.0,0.36104757]
[1724941205106,0.0403631,60630.0,60625.0,0.36104757]
[1724941205309,0.082448,60629.0,60625.0,0.36104757]
[1724941205507,0.082449,60628.0,60625.0,0.36104757]
[1724941205708,0.5,60631.0,60625.0,0.00024757]
[1724941205908,0.04036742,60630.0,60625.0,0.00024757]
[1724941206104,0.4014,60634.0,60626.0,0.3608]
[1724941206307,0.14763213,60641.0,60632.0,0.3608]
[1724941206618,0.3608,60637.0,60626.0,0.3608]
[1724941207005,0.082445,60631.0,60626.0,0.3608]
[1724941207209,0.3608,60637.0,60626.0,0.3608]
[1724941207210,0.443238,60637.0,60626.0,0.3608]
[1724941207510,0.3608,60631.0,60625.0,0.00024757]
[1724941207812,0.082451,60627.0,60625.0,0.00024757]
[1724941208015,0.04036461,60626.0,60625.0,0.00024757]
[1724941208918,0.12281661,60626.0,60625.0,0.36104757]
[1724941209705,0.12281661,60626.0,60625.0,0.00024757]
[1724941210023,0.12281661,60626.0,60613.0,0.3608]
[1724941210024,0.082468,60614.0,60613.0,0.3608]
[1724941210414,0.12284277,60614.0,60613.0,0.3608]
[1724941210717,0.04037477,60614.0,60613.0,0.3608]
[1724941210914,0.12284277,60614.0,60613.0,0.3608]
[1724941211119,0.04037477,60614.0,60613.0,0.3608]
[1724941211310,0.00024757,60620.0,60614.0,0.082467]
[1724941211513,0.04037319,60619.0,60613.0,0.3608]
[1724941211817,0.00024757,60620.0,60613.0,0.3608]
[1724941211818,0.04037319,60618.0,60613.0,0.3608]
[1724941212023,0.14700233,60618.0,60613.0,0.3608]
[1724941212321,0.00024757,60620.0,60613.0,0.3608]
[1724941212322,0.082468,60614.0,60613.0,0.3608]
[1724941212520,0.40117319,60614.0,60607.0,0.00024757]
[1724941212826,0.04037319,60613.0,60607.0,0.00024757]
[1724941213319,0.082471,60612.0,60607.0,0.00024757]
[1724941213516,0.04037319,60613.0,60607.0,0.00024757]
[1724941213517,0.04037319,60611.0,60607.0,0.00024757]
[1724941213715,0.14700233,60619.0,60610.0,0.7208]
[1724941214022,0.00024757,60620.0,60618.0,0.3608]
[1724941214222,0.04037124,60619.0,60618.0,0.3608]
[1724941214415,0.04037124,60619.0,60610.0,0.3608]
[1724941214722,0.04037124,60618.0,60610.0,0.3608]
[1724941214922,0.04037124,60617.0,60610.0,0.3608]
[1724941215107,0.00024757,60620.0,60610.0,0.3608]
[1724941215108,0.04037124,60616.0,60615.0,0.443267]
[1724941215314,0.31159483,60618.0,60617.0,0.082464]
[1724941215515,0.00024757,60620.0,60619.0,0.082461]
[1724941216325,0.00024757,60620.0,60618.0,0.3608]
[1724941216915,0.3608,60630.0,60619.0,0.49488]
[1724941217117,0.582434,60639.0,60625.0,0.3608]
[1724941217310,0.3608,60636.0,60625.0,0.3608]
[1724941217715,0.08244,60635.0,60625.0,0.3608]
[1724941217919,0.36104757,60636.0,60625.0,0.3608]
[1724941218129,0.0403671,60635.0,60625.0,0.3608]
[1724941218326,0.082444,60632.0,60625.0,0.3608]
[1724941218823,0.082445,60631.0,60625.0,0.3608]
[1724941219017,0.08244,60635.0,60625.0,0.38850689]
[1724941219323,0.04036645,60634.0,60625.0,0.38850689]
[1724941219521,0.04036645,60633.0,60625.0,0.38850689]
[1724941219822,0.36104757,60636.0,60630.0,0.3608]
[1724941219823,0.00024757,60636.0,60630.0,0.3608]
[1724941220027,0.04036312,60635.0,60630.0,0.3608]
[1724941220320,0.40116312,60634.0,60625.0,0.38850689]
[1724941220526,0.082445,60631.0,60625.0,0.38850689]
[1724941220726,0.00024757,60636.0,60627.0,0.08245]
[1724941220918,0.04036572,60635.0,60633.0,0.082441]
[1724941221223,0.00024757,60636.0,60630.0,0.3608]
[1724941221815,0.082445,60632.0,60630.0,0.3608]
[1724941222024,0.04036287,60631.0,60630.0,0.3608]
[1724941222325,0.082443,60633.0,60630.0,0.3608]
[1724941222527,0.20476335,60632.0,60630.0,0.3608]
[1724941222723,0.22014543,60631.0,60630.0,0.3608]
[1724941223026,0.20409917,60631.0,60630.0,0.3608]
[1724941223218,0.04036345,60631.0,60630.0,0.3608]
[1724941223416,0.04036345,60631.0,60630.0,0.443246]
[1724941223724,0.04036345,60631.0,60625.0,0.38850689]
[1724941223725,0.12280845,60631.0,60625.0,0.38850689]
[1724941223916,0.187707,60630.0,60625.0,0.38850689]
[1724941224117,0.187707,60629.0,60625.0,0.38850689]
[1724941224317,0.187707,60628.0,60626.0,0.3608]
[1724941224520,0.082452,60626.0,60625.0,0.3608]
[1724941224720,0.12281545,60626.0,60625.0,0.3608]
[1724941224927,0.12281545,60626.0,60610.0,0.3638]
[1724941224928,1.36116345,60626.0,60610.0,0.0038]
[1724941225113,1.36116345,60626.0,60594.0,0.3608]
[1724941225114,0.3608,60611.0,60597.0,0.02812488]
[1724941225313,0.3608,60611.0,60588.0,0.3608]
[1724941225314,0.3608,60603.0,60588.0,0.3608]
[1724941225521,0.3608,60598.0,60588.0,0.3608]
[1724941225728,0.14747934,60589.0,60588.0,0.3608]
[1724941225918,0.04036345,60589.0,60588.0,0.3608]
[1724941226117,0.04036345,60589.0,60588.0,1.898463]
[1724941226320,0.04038662,60589.0,60588.0,1.898463]
[1724941226515,0.00024757,60595.0,60588.0,1.81596]
[1724941226835,0.14747934,60601.0,60594.0,0.3608]
[1724941227019,0.13069248,60606.0,60601.0,0.36]
[1724941227327,0.16386594,60617.0,60605.0,0.3608]
[1724941227626,0.04037882,60616.0,60605.0,0.3608]
[1724941227924,0.04037882,60615.0,60605.0,0.3608]
[1724941228129,0.04037882,60614.0,60605.0,0.3608]
[1724941228332,0.04037882,60613.0,60605.0,0.3608]
[1724941228524,0.04037882,60612.0,60605.0,0.3608]
[1724941228721,0.04037882,60611.0,60605.0,0.3608]
[1724941228921,0.04037882,60610.0,60605.0,0.3608]
[1724941229122,0.04037882,60609.0,60605.0,0.3608]
[1724941229322,0.04037882,60608.0,60605.0,0.3608]
[1724941229522,0.04037882,60607.0,60605.0,0.38856551]
[1724941229722,0.04037882,60606.0,60605.0,0.38856551]
[1724941230128,0.03558854,60606.0,60605.0,1.56604551]
[1724941230332,0.14505323,60613.0,60605.0,1.48356551]
[1724941230535,0.00024757,60617.0,60616.0,0.082465]
[1724941231038,0.00024757,60617.0,60616.0,0.577385]
[1724941231233,0.00024757,60617.0,60616.0,0.082465]
[1724941231532,0.00024757,60617.0,60616.0,0.577385]
[1724941231733,0.00024757,60617.0,60616.0,1.2055165]
[1724941232034,0.456336,60638.0,60616.0,1.1230515]
[1724941232035,0.3739,60638.0,60616.0,1.1230515]
[1724941232229,0.3739,60638.0,60627.0,0.3608]
[1724941232426,0.86164,60644.0,60632.0,0.3608]
[1724941232731,0.13302012,60643.0,60632.0,0.3608]
[1724941233030,0.08243,60642.0,60632.0,0.3608]
[1724941233434,0.3608,60635.0,60606.0,0.3608]
[1724941233625,0.3608,60622.0,60610.0,0.082473]
[1724941234431,0.36104757,60622.0,60610.0,0.08272057]
[1724941234629,0.3608,60617.0,60612.0,0.082471]
[1724941235030,0.3608,60617.0,60610.0,0.00024757]
[1724941235630,0.00024757,60622.0,60610.0,0.00024757]
[1724941235631,0.3608,60611.0,60610.0,0.00024757]
[1724941236340,0.49388785,60611.0,60610.0,0.00024757]
[1724941236533,0.49388785,60611.0,60589.0,0.3608]
[1724941236534,0.41141585,60611.0,60589.0,0.3608]
[1724941236735,0.41141585,60611.0,60585.0,0.1984]
[1724941236736,0.3608,60591.0,60585.0,0.1984]
[1724941237035,0.3608,60591.0,60582.0,0.3608]
[1724941237229,0.3608,60591.0,60582.0,0.7208]
[1724941237427,0.3608,60591.0,60590.0,0.442501]
[1724941237624,0.1477831,60604.0,60591.0,0.49512]
[1724941237625,0.8608,60604.0,60591.0,0.49512]
[1724941237833,0.3608,60604.0,60598.0,0.3608]
[1724941238028,0.3608,60610.0,60591.0,0.1925]
[1724941238233,0.3608,60603.0,60594.0,0.3608]
[1724941238535,0.3608,60603.0,60591.0,0.1907]
[1724941238536,0.3608,60610.0,60597.0,0.08249]
[1724941238735,0.3608,60610.0,60597.0,0.08273757]
[1724941238736,0.04037991,60609.0,60597.0,0.08273757]
[1724941238935,0.36104757,60610.0,60597.0,0.00024757]
[1724941239435,0.3608,60615.0,60605.0,0.3608]
[1724941239839,0.3608,60615.0,60605.0,0.44328]
[1724941240027,0.3608,60615.0,60605.0,0.3608]
[1724941240428,0.3608,60609.0,60597.0,0.00024757]
[1724941240627,0.3608,60602.0,60597.0,0.00024757]
[1724941241240,0.04038458,60601.0,60597.0,0.00024757]
[1724941241437,0.7216,60602.0,60597.0,0.00024757]
[1724941241438,0.04038458,60600.0,60597.0,0.00024757]
[1724941241631,0.804084,60602.0,60597.0,0.00024757]
[1724941241832,0.082489,60599.0,60597.0,0.00024757]
[1724941242045,0.5,60601.0,60597.0,0.00024757]
[1724941242342,0.7216,60602.0,60597.0,0.00024757]
[1724941243039,0.7216,60602.0,60599.0,0.082488]
[1724941243745,0.3608,60602.0,60601.0,0.082486]
[1724941244037,0.3608,60613.0,60601.0,0.6]
[1724941244244,0.3608,60613.0,60600.0,0.69218]
[1724941244245,0.3608,60613.0,60600.0,0.19714]
[1724941244438,0.0403766,60612.0,60605.0,0.08248]
[1724941244646,0.3608,60613.0,60605.0,0.08248]
[1724941244836,0.04037678,60612.0,60605.0,0.08248]
[1724941245038,0.3608,60608.0,60600.0,0.1953]
[1724941245541,0.3608,60608.0,60598.0,0.3608]
[1724941245842,0.04038113,60607.0,60597.0,0.00024757]
[1724941246035,0.04038158,60606.0,60597.0,0.00024757]
[1724941246231,0.3608,60601.0,60597.0,0.00024757]
[1724941246540,0.5,60612.0,60599.0,0.36]